fUST/lending_fUST_20240521
["ID","MTS","AMOUNT","RATE_DAILY","PERIOD"]
[327633462,1716261056306,-536.15,0.00047397,43]
[327633463,1716261056315,-1453.75,0.00047397,43]
[327633464,1716261056324,-560.28,0.00047397,43]
[327633465,1716261056333,-990.66,0.00047397,43]
[327633466,1716261056343,-821.46,0.00047397,43]
[327633467,1716261056352,-500.0,0.00047397,43]
[327633468,1716261056362,-500.0,0.00047397,43]
[327633469,1716261056371,-500.0,0.00047397,43]
[327633470,1716261056381,-584.41,0.00047397,43]
[327633471,1716261056390,-566.01,0.00047397,43]
[327633472,1716261056400,-500.0,0.00047397,43]
[327633473,1716261056409,-500.0,0.00047397,43]
[327633474,1716261056419,-500.0,0.00047397,43]
[327633475,1716261056428,-500.0,0.00047397,43]
[327633476,1716261056438,-1048.39,0.00047397,43]
[327633477,1716261056447,-933.12,0.00047397,43]
[327633478,1716261056457,-551.58,0.00047397,43]
[327633479,1716261056466,-728.16,0.00047397,43]
[327633480,1716261056476,-500.0,0.00047397,43]
[327633481,1716261056485,-1110.0,0.00047397,43]
[327633482,1716261056495,-500.0,0.00047397,43]
[327633483,1716261056504,-500.0,0.00047397,43]
[327633484,1716261056513,-500.0,0.00047397,43]
[327633485,1716261056523,-1247.44,0.00047397,43]
[327633486,1716261056533,-656.48,0.00047397,43]
[327633487,1716261056543,-500.0,0.00047397,43]
[327633488,1716261056552,-393.32465289,0.00047397,43]
[327633489,1716261056561,-1477.61,0.00047397,43]
[327633490,1716261056570,-620.78008156,0.00047397,43]
[327633491,1716261056579,-2492.34,0.00047397,43]
[327633492,1716261056588,-719.6,0.00047397,43]
[327633493,1716261056598,-500.0,0.00047397,43]
[327633494,1716261056607,-2466.98522046,0.00047397,43]
[327633495,1716261056782,-14769.56477954,0.00047397,43]
[327633496,1716261056792,-500.0,0.00047397,43]
[327633497,1716261056801,-500.0,0.00047397,43]
[327633498,1716261056810,-2734.48,0.00047397,43]
[327633499,1716261056820,-933.62,0.00047397,43]
[327633500,1716261056830,-500.0,0.00047397,43]
[327633501,1716261056839,-1413.37,0.00047397,43]
[327633502,1716261056849,-500.0,0.00047397,43]
[327633503,1716261056858,-202.60731168,0.00047397,43]
[327633504,1716261056870,-297.39268832,0.00047397,43]
[327633505,1716261056879,-587.89,0.00047397,43]
[327633506,1716261056889,-500.0,0.00047397,43]
[327633507,1716261056898,-508.9615595,0.00047397,43]
[327633508,1716261056907,-564.42,0.00047397,43]
[327633509,1716261056917,-500.0,0.00047397,43]
[327633510,1716261056926,-500.0,0.00047397,43]
[327633511,1716261056935,-637.03,0.00047397,43]
[327633512,1716261056944,-800.14,0.00047397,43]
[327633513,1716261056953,-1132.13,0.00047397,43]
[327633514,1716261056963,-500.0,0.00047397,43]
[327633515,1716261056971,-978.09,0.00047397,43]
[327633516,1716261056981,-500.0,0.00047397,30]
[327633517,1716261056990,-656.24,0.00047397,43]
[327633518,1716261057000,-500.0,0.00047397,43]
[327633519,1716261057009,-500.0,0.00047397,43]
[327633520,1716261057019,-1795.64,0.00047397,43]
[327633521,1716261057027,-500.0,0.00047397,43]
[327633522,1716261057038,-216.4862311,0.00047397,43]
[327633523,1716261057047,-720.01,0.00047397,43]
[327633524,1716261057055,-500.0,0.00047397,2]
[327633525,1716261057065,-3000.0,0.00047397,30]
[327633526,1716261057079,-1695.89,0.00047397,43]
[327633527,1716261057088,-561.03,0.00047397,43]
[327633528,1716261057097,-500.0,0.00047397,43]
[327633529,1716261057107,-596.02,0.00047397,43]
[327633530,1716261057117,-500.0,0.00047397,43]
[327633531,1716261057126,-604.29,0.00047397,43]
[327633532,1716261057135,-500.0,0.00047397,43]
[327633533,1716261057144,-278.37662637,0.00047671,44]
[327633534,1716261057156,-500.0,0.00047671,44]
[327633535,1716261057166,-500.0,0.00047671,44]
[327633536,1716261057175,-663.57,0.00047671,44]
[327633537,1716261057185,-616.2,0.00047671,44]
[327633538,1716261057194,-500.0,0.00047671,44]
[327633539,1716261057204,-596.58060084,0.00047671,44]
[327633540,1716261057213,-500.0,0.00047671,44]
[327633541,1716261057223,-500.0,0.00047671,44]
[327633542,1716261057232,-507.53078668,0.00047671,44]
[327633543,1716261057241,-500.0,0.00047671,44]
[327633544,1716261057251,-526.52788239,0.00047671,44]
[327633545,1716261057260,-500.0,0.00047671,44]
[327633546,1716261057270,-500.0,0.00047671,44]
[327633547,1716261057281,-500.0,0.00047671,44]
[327633548,1716261057290,-500.0,0.00047671,44]
[327633549,1716261057299,-500.0,0.00047671,44]
[327633550,1716261057308,-500.0,0.00047671,44]
[327633551,1716261057317,-500.0,0.00047671,44]
[327633552,1716261057326,-500.0,0.00047671,44]
[327633553,1716261057335,-500.0,0.00047671,44]
[327633554,1716261057345,-516.10035225,0.00047671,44]
[327633555,1716261057354,-518.73,0.00047671,44]
[327633556,1716261057363,-500.0,0.00047671,44]
[327633557,1716261057372,-500.0,0.00047671,44]
[327633558,1716261057382,-500.0,0.00047671,44]
[327633559,1716261057391,-500.0,0.00047671,44]
[327633560,1716261057400,-684.09,0.00047671,44]
[327633561,1716261057409,-636.08,0.00047671,44]
[327633562,1716261057418,-500.0,0.00047671,44]
[327633563,1716261057427,-500.0,0.00047671,44]
[327633564,1716261057436,-808.17,0.00047671,44]
[327633565,1716261057445,-519.27,0.00047671,44]
[327633566,1716261057454,-500.0,0.00047671,44]
[327633567,1716261057463,-872.22,0.00047671,44]
[327633568,1716261057473,-500.0,0.00047671,44]
[327633569,1716261057482,-631.23,0.00047671,44]
[327633570,1716261057491,-500.0,0.00047671,44]
[327633571,1716261057500,-233.51211085,0.00047671,44]
[327633572,1716261057509,-500.0,0.00047671,44]
[327633573,1716261057518,-500.0,0.00047671,44]
[327633574,1716261057527,-687.83,0.00047671,44]
[327633575,1716261057538,-563.08,0.00047671,44]
[327633576,1716261057547,-500.0,0.00047671,44]
[327633577,1716261057556,-673.46,0.00047671,44]
[327633578,1716261057565,-500.0,0.00047671,44]
[327633579,1716261057575,-582.03,0.00047671,44]
[327633580,1716261057584,-500.0,0.00047671,44]
[327633581,1716261057593,-500.0,0.00047671,44]
[327633582,1716261057602,-500.0,0.00047671,44]
[327633583,1716261057611,-770.72,0.00047671,44]
[327633584,1716261057621,-500.0,0.00047671,44]
[327633585,1716261057630,-582.81,0.00047671,44]
[327633586,1716261057639,-613.54,0.00047671,44]
[327633587,1716261057648,-500.0,0.00047671,44]
[327633588,1716261057657,-500.0,0.00047671,44]
[327633589,1716261057667,-500.0,0.00047671,44]
[327633590,1716261057675,-500.0,0.00047671,44]
[327633591,1716261057685,-696.81,0.00047671,44]
[327633592,1716261057694,-500.0,0.00047671,44]
[327633593,1716261057703,-616.93,0.00047671,44]
[327633594,1716261057712,-602.57,0.00047671,44]
[327633595,1716261057721,-500.0,0.00047671,44]
[327633596,1716261057730,-538.15,0.00047671,44]
[327633597,1716261057841,-778.24,0.00047671,44]
[327633598,1716261057851,-590.97,0.00047671,44]
[327633599,1716261057860,-644.31,0.00047671,44]
[327633600,1716261057870,-500.0,0.00047671,44]
[327633601,1716261057879,-501.92,0.00047671,44]
[327633602,1716261057888,-567.94,0.00047671,44]
[327633603,1716261057898,-500.0,0.00047671,44]
[327633604,1716261057907,-602.75,0.00047671,44]
[327633605,1716261057916,-500.0,0.00047671,44]
[327633606,1716261057926,-500.0,0.00047671,44]
[327633607,1716261057935,-500.0,0.00047671,44]
[327633608,1716261057945,-500.0,0.00047671,44]
[327633609,1716261057954,-500.0,0.00047671,44]
[327633610,1716261057963,-556.52,0.00047671,44]
[327633611,1716261057972,-500.0,0.00047671,44]
[327633612,1716261057982,-500.0,0.00047671,44]
[327633613,1716261057993,-500.0,0.00047671,20]
[327633614,1716261058002,-561.69,0.00047671,44]
[327633615,1716261058012,-502.32,0.00047671,44]
[327633616,1716261058021,-506.71,0.00047671,44]
[327633617,1716261058031,-500.0,0.00047671,44]
[327633618,1716261058040,-500.0,0.00047671,44]
[327633619,1716261058049,-1083.25,0.00047671,44]
[327633620,1716261058058,-501.28408152,0.00047671,44]
[327633621,1716261058068,-593.03,0.00047671,44]
[327633622,1716261058083,-500.0,0.00047671,44]
[327633623,1716261058092,-500.0,0.00047671,44]
[327633624,1716261058101,-500.0,0.00047671,44]
[327633625,1716261058110,-500.0,0.00047671,44]
[327633626,1716261058121,-500.0,0.00047671,120]
[327633627,1716261058131,-663.13,0.00047671,44]
[327633628,1716261058140,-500.0,0.00047671,44]
[327633629,1716261058151,-831.4,0.00047671,44]
[327633630,1716261058160,-500.0,0.00047671,44]
[327633631,1716261058170,-532.71,0.00047671,44]
[327633632,1716261058179,-517.23548679,0.00047671,44]
[327633633,1716261058189,-2348.11,0.00047671,44]
[327633634,1716261058198,-500.0,0.00047671,44]
[327633635,1716261058207,-500.0,0.00047671,14]
[327633636,1716261058216,-607.4,0.00047671,44]
[327633637,1716261058225,-500.0,0.00047671,44]
[327633638,1716261058235,-500.0,0.00047671,44]
[327633639,1716261058244,-662.96,0.00047671,44]
[327633640,1716261058254,-500.0,0.00047671,44]
[327633641,1716261058264,-500.0,0.00047671,44]
[327633642,1716261058273,-151.0,0.00047671,7]
[327633643,1716261058283,-587.81,0.00047671,44]
[327633644,1716261058292,-500.0,0.00047671,2]
[327633645,1716261058302,-515.22,0.00047671,44]
[327633646,1716261058311,-500.0,0.00047671,44]
[327633647,1716261058320,-500.0,0.00047671,44]
[327633648,1716261058329,-500.0,0.00047671,44]
[327633649,1716261058338,-670.15,0.00047671,44]
[327633650,1716261058348,-500.0,0.00047671,44]
[327633651,1716261058357,-810.47,0.00047671,44]
[327633652,1716261058367,-600.08,0.00047671,44]
[327633653,1716261058376,-500.0,0.00047671,44]
[327633654,1716261058385,-1611.07,0.00047671,44]
[327633655,1716261058394,-500.0,0.00047671,44]
[327633656,1716261058403,-2722.49,0.00047671,44]
[327633657,1716261058412,-500.0,0.00047671,44]
[327633658,1716261058421,-717.63,0.00047671,7]
[327633659,1716261058430,-502.42,0.00047671,44]
[327633660,1716261058440,-500.0,0.00047671,44]
[327633661,1716261058450,-579.46,0.00047671,44]
[327633662,1716261058459,-916.69,0.00047671,44]
[327633663,1716261058467,-500.0,0.00047671,44]
[327633664,1716261058477,-500.0,0.00047671,44]
[327633665,1716261058486,-500.0,0.00047671,44]
[327633666,1716261058495,-9370.84,0.00047671,44]
[327633667,1716261058506,-695.34,0.00047671,44]
[327633668,1716261058515,-500.0,0.00047671,44]
[327633669,1716261058524,-500.0,0.00047671,44]
[327633670,1716261058534,-519.75794095,0.00047671,44]
[327633671,1716261058543,-876.56,0.00047671,44]
[327633672,1716261058553,-3994.89,0.00047671,44]
[327633673,1716261058562,-500.0,0.00047671,44]
[327633674,1716261058571,-500.0,0.00047671,44]
[327633675,1716261058580,-500.0,0.00047671,44]
[327633676,1716261058589,-583.62,0.00047671,44]
[327633677,1716261058598,-500.0,0.00047671,44]
[327633678,1716261058607,-500.0,0.00047671,44]
[327633679,1716261058616,-840.22,0.00047671,44]
[327633680,1716261058626,-2678.06,0.00047671,7]
[327633681,1716261058635,-323.67206567,0.00047671,44]
[327633682,1716261058645,-3759.63,0.00047671,44]
[327633683,1716261058654,-696.23,0.00047671,44]
[327633684,1716261058663,-500.0,0.00047671,44]
[327633685,1716261058672,-520.08,0.00047671,44]
[327633686,1716261058682,-500.0,0.00047671,44]
[327633687,1716261058691,-733.96,0.00047671,44]
[327633688,1716261058700,-3682.37,0.00047671,21]
[327633689,1716261058709,-555.12,0.00047671,44]
[327633690,1716261058718,-151.0,0.00047671,7]
[327633691,1716261058727,-151.0,0.00047671,7]
[327633692,1716261058736,-6814.52,0.00047671,44]
[327633693,1716261058746,-500.0,0.00047671,44]
[327633694,1716261058755,-151.0,0.00047671,7]
[327633695,1716261058764,-151.0,0.00047671,7]
[327633696,1716261058774,-550.51,0.00047671,44]
[327633697,1716261058783,-500.0,0.00047671,44]
[327633698,1716261058792,-500.0,0.00047671,44]
[327633699,1716261058801,-779.37,0.00047671,44]
[327633700,1716261058811,-546.38,0.00047671,44]
[327633701,1716261058820,-536.15,0.00047671,44]
[327633702,1716261058829,-1453.75,0.00047671,44]
[327633703,1716261058838,-560.28,0.00047671,44]
[327633704,1716261058847,-990.66,0.00047671,44]
[327633705,1716261058856,-821.46,0.00047671,44]
[327633706,1716261058866,-500.0,0.00047671,44]
[327633707,1716261058875,-500.0,0.00047671,44]
[327633708,1716261058884,-500.0,0.00047671,44]
[327633709,1716261058894,-584.41,0.00047671,44]
[327633710,1716261058903,-566.01,0.00047671,44]
[327633711,1716261058913,-500.0,0.00047671,44]
[327633712,1716261058923,-500.0,0.00047671,44]
[327633713,1716261058932,-500.0,0.00047671,44]
[327633714,1716261058942,-500.0,0.00047671,44]
[327633715,1716261058951,-1048.39,0.00047671,44]
[327633716,1716261058960,-933.12,0.00047671,44]
[327633717,1716261058969,-551.58,0.00047671,44]
[327633718,1716261058978,-728.16,0.00047671,44]
[327633719,1716261058987,-500.0,0.00047671,44]
[327633720,1716261058995,-1110.0,0.00047671,44]
[327633721,1716261059004,-500.0,0.00047671,44]
[327633722,1716261059013,-500.0,0.00047671,44]
[327633723,1716261059023,-500.0,0.00047671,44]
[327633724,1716261059033,-1247.44,0.00047671,44]
[327633725,1716261059042,-656.48,0.00047671,44]
[327633726,1716261059051,-500.0,0.00047671,44]
[327633727,1716261059060,-1477.61,0.00047671,44]
[327633728,1716261059069,-2492.34,0.00047671,44]
[327633729,1716261059083,-719.6,0.00047671,44]
[327633730,1716261059092,-500.0,0.00047671,44]
[327633731,1716261059101,-17236.55,0.00047671,44]
[327633732,1716261059111,-500.0,0.00047671,44]
[327633733,1716261059120,-500.0,0.00047671,44]
[327633734,1716261059130,-2734.48,0.00047671,44]
[327633735,1716261059139,-933.62,0.00047671,44]
[327633736,1716261059151,-500.0,0.00047671,44]
[327633737,1716261059160,-1413.37,0.00047671,44]
[327633738,1716261059169,-500.0,0.00047671,44]
[327633739,1716261059178,-500.0,0.00047671,44]
[327633740,1716261059187,-587.89,0.00047671,44]
[327633741,1716261059196,-500.0,0.00047671,44]
[327633742,1716261059205,-564.42,0.00047671,44]
[327633743,1716261059214,-500.0,0.00047671,44]
[327633744,1716261059223,-500.0,0.00047671,44]
[327633745,1716261059232,-637.03,0.00047671,44]
[327633746,1716261059242,-800.14,0.00047671,44]
[327633747,1716261059251,-1132.13,0.00047671,44]
[327633748,1716261059260,-978.09,0.00047671,44]
[327633749,1716261059269,-500.0,0.00047671,44]
[327633750,1716261059279,-500.0,0.00047671,30]
[327633751,1716261059289,-656.24,0.00047671,44]
[327633752,1716261059298,-500.0,0.00047671,44]
[327633753,1716261059307,-500.0,0.00047671,44]
[327633754,1716261059316,-1795.64,0.00047671,44]
[327633755,1716261059326,-500.0,0.00047671,44]
[327633756,1716261059335,-720.01,0.00047671,44]
[327633757,1716261059345,-500.0,0.00047671,2]
[327633758,1716261059354,-3000.0,0.00047671,30]
[327633759,1716261059364,-1695.89,0.00047671,44]
[327633760,1716261059373,-561.03,0.00047671,44]
[327633761,1716261059383,-500.0,0.00047671,44]
[327633762,1716261059392,-596.02,0.00047671,44]
[327633763,1716261059401,-500.0,0.00047671,44]
[327633764,1716261059411,-604.29,0.00047671,44]
[327633765,1716261059420,-500.0,0.00047671,44]
[327633766,1716261059429,-151.0,0.0004789,120]
[327633767,1716261059438,-492.69206575,0.00047943,30]
[327633768,1716261059448,-175.88853076,0.00047943,4]
[327633769,1716261059458,-353.14616788,0.00047944,30]
[327633770,1716261059467,-500.0,0.00047945,45]
[327633771,1716261059476,-500.0,0.00047945,45]
[327633772,1716261059485,-663.57,0.00047945,45]
[327633773,1716261059494,-616.2,0.00047945,45]
[327633774,1716261059503,-500.0,0.00047945,45]
[327633775,1716261059512,-500.0,0.00047945,45]
[327633776,1716261059522,-500.0,0.00047945,45]
[327633777,1716261059532,-521.94578557,0.00047945,45]
[327633778,1716261059541,-500.0,0.00047945,45]
[327633779,1716261059550,-500.0,0.00047945,45]
[327633780,1716261059560,-500.0,0.00047945,45]
[327633781,1716261059569,-500.0,0.00047945,45]
[327633782,1716261059578,-500.0,0.00047945,45]
[327633783,1716261059587,-500.0,0.00047945,45]
[327633784,1716261059596,-500.0,0.00047945,45]
[327633785,1716261059605,-500.0,0.00047945,45]
[327633786,1716261059697,-500.0,0.00047945,45]
[327633787,1716261059714,-518.73,0.00047945,45]
[327633788,1716261059724,-500.0,0.00047945,45]
[327633789,1716261059733,-500.0,0.00047945,45]
[327633790,1716261059742,-500.0,0.00047945,45]
[327633791,1716261059753,-500.0,0.00047945,45]
[327633792,1716261059762,-684.09,0.00047945,45]
[327633793,1716261059771,-636.08,0.00047945,45]
[327633794,1716261059780,-500.0,0.00047945,45]
[327633795,1716261059791,-500.0,0.00047945,45]
[327633796,1716261059800,-808.17,0.00047945,45]
[327633797,1716261059809,-519.27,0.00047945,45]
[327633798,1716261059819,-500.0,0.00047945,45]
[327633799,1716261059828,-872.22,0.00047945,45]
[327633800,1716261059837,-500.0,0.00047945,45]
[327633801,1716261059847,-631.23,0.00047945,45]
[327633802,1716261059856,-500.0,0.00047945,45]
[327633803,1716261059866,-500.0,0.00047945,45]
[327633804,1716261059875,-500.0,0.00047945,45]
[327633805,1716261059884,-687.83,0.00047945,45]
[327633806,1716261059894,-563.08,0.00047945,45]
[327633807,1716261059903,-500.0,0.00047945,45]
[327633808,1716261059913,-673.46,0.00047945,45]
[327633809,1716261059922,-500.0,0.00047945,45]
[327633810,1716261059932,-582.03,0.00047945,45]
[327633811,1716261059941,-500.0,0.00047945,45]
[327633812,1716261059951,-500.0,0.00047945,45]
[327633813,1716261059960,-500.0,0.00047945,45]
[327633814,1716261059970,-770.72,0.00047945,45]
[327633815,1716261059979,-500.0,0.00047945,45]
[327633816,1716261059988,-582.81,0.00047945,45]
[327633817,1716261059998,-613.54,0.00047945,45]
[327633818,1716261060007,-494.00161287,0.00047945,45]
[327633819,1716261060016,-500.0,0.00047945,45]
[327633820,1716261060026,-500.0,0.00047945,45]
[327633821,1716261060036,-500.0,0.00047945,45]
[327633822,1716261060046,-696.81,0.00047945,45]
[327633823,1716261060055,-500.0,0.00047945,45]
[327633824,1716261060066,-616.93,0.00047945,45]
[327633825,1716261060081,-602.57,0.00047945,45]
[327633826,1716261060091,-500.0,0.00047945,45]
[327633827,1716261060100,-538.15,0.00047945,45]
[327633828,1716261060111,-778.24,0.00047945,45]
[327633829,1716261060121,-590.97,0.00047945,45]
[327633830,1716261060131,-644.31,0.00047945,45]
[327633831,1716261060141,-500.0,0.00047945,45]
[327633832,1716261060151,-501.92,0.00047945,45]
[327633833,1716261060162,-567.94,0.00047945,45]
[327633834,1716261060171,-500.0,0.00047945,45]
[327633835,1716261060181,-500.0,0.00047945,45]
[327633836,1716261060190,-602.75,0.00047945,45]
[327633837,1716261060200,-500.0,0.00047945,45]
[327633838,1716261060209,-500.0,0.00047945,45]
[327633839,1716261060218,-500.0,0.00047945,45]
[327633840,1716261060227,-500.0,0.00047945,45]
[327633841,1716261060237,-556.52,0.00047945,45]
[327633842,1716261060246,-500.0,0.00047945,45]
[327633843,1716261060256,-500.0,0.00047945,45]
[327633844,1716261060265,-500.0,0.00047945,20]
[327633845,1716261060274,-561.69,0.00047945,45]
[327633846,1716261060286,-502.32,0.00047945,45]
[327633847,1716261060295,-506.71,0.00047945,45]
[327633848,1716261060304,-500.0,0.00047945,45]
[327633849,1716261060313,-500.0,0.00047945,45]
[327633850,1716261060322,-1083.25,0.00047945,45]
[327633851,1716261060331,-593.03,0.00047945,45]
[327633852,1716261060340,-500.0,0.00047945,45]
[327633853,1716261060350,-500.0,0.00047945,45]
[327633854,1716261060360,-500.0,0.00047945,45]
[327633855,1716261060369,-500.0,0.00047945,45]
[327633856,1716261060378,-500.0,0.00047945,120]
[327633857,1716261060387,-663.13,0.00047945,45]
[327633858,1716261060397,-500.0,0.00047945,45]
[327633859,1716261060406,-831.4,0.00047945,45]
[327633860,1716261060415,-453.14012886,0.00047945,45]
[327633861,1716261060424,-532.71,0.00047945,45]
[327633862,1716261060433,-2348.11,0.00047945,45]
[327633863,1716261060442,-500.0,0.00047945,45]
[327633864,1716261060451,-500.0,0.00047945,14]
[327633865,1716261060460,-607.4,0.00047945,45]
[327633866,1716261060469,-500.0,0.00047945,45]
[327633867,1716261060479,-500.0,0.00047945,45]
[327633868,1716261060488,-662.96,0.00047945,45]
[327633869,1716261060497,-500.0,0.00047945,45]
[327633870,1716261060506,-500.0,0.00047945,45]
[327633871,1716261060516,-227.513352,0.00047945,7]
[327633872,1716261060525,-587.81,0.00047945,45]
[327633873,1716261060536,-515.22,0.00047945,45]
[327633874,1716261060545,-500.0,0.00047945,2]
[327633875,1716261060555,-500.0,0.00047945,45]
[327633876,1716261060564,-500.0,0.00047945,45]
[327633877,1716261060574,-500.0,0.00047945,45]
[327633878,1716261060583,-670.15,0.00047945,45]
[327633879,1716261060592,-500.0,0.00047945,45]
[327633880,1716261060601,-810.47,0.00047945,45]
[327633881,1716261060610,-600.08,0.00047945,45]
[327633882,1716261060619,-500.0,0.00047945,45]
[327633883,1716261060628,-1611.07,0.00047945,45]
[327633884,1716261060637,-500.0,0.00047945,45]
[327633885,1716261060646,-2722.49,0.00047945,45]
[327633886,1716261060655,-500.0,0.00047945,45]
[327633887,1716261060664,-717.63,0.00047945,7]
[327633888,1716261060673,-502.42,0.00047945,45]
[327633889,1716261060683,-500.0,0.00047945,45]
[327633890,1716261060692,-579.46,0.00047945,45]
[327633891,1716261060701,-916.69,0.00047945,45]
[327633892,1716261060709,-500.0,0.00047945,45]
[327633893,1716261060719,-500.0,0.00047945,45]
[327633894,1716261060728,-500.0,0.00047945,45]
[327633895,1716261060738,-9370.84,0.00047945,45]
[327633896,1716261060747,-695.34,0.00047945,45]
[327633897,1716261060756,-500.0,0.00047945,45]
[327633898,1716261060766,-500.0,0.00047945,45]
[327633899,1716261060775,-876.56,0.00047945,45]
[327633900,1716261060785,-3994.89,0.00047945,45]
[327633901,1716261060795,-500.0,0.00047945,45]
[327633902,1716261060805,-500.0,0.00047945,45]
[327633903,1716261060814,-500.0,0.00047945,45]
[327633904,1716261060824,-583.62,0.00047945,45]
[327633905,1716261060833,-500.0,0.00047945,45]
[327633906,1716261060842,-500.0,0.00047945,45]
[327633907,1716261060852,-840.22,0.00047945,45]
[327633908,1716261060861,-2678.06,0.00047945,7]
[327633909,1716261060870,-3759.63,0.00047945,45]
[327633910,1716261060880,-696.23,0.00047945,45]
[327633911,1716261060889,-500.0,0.00047945,45]
[327633912,1716261060898,-520.08,0.00047945,45]
[327633913,1716261060907,-500.0,0.00047945,45]
[327633914,1716261060917,-733.96,0.00047945,45]
[327633915,1716261060926,-3682.37,0.00047945,21]
[327633916,1716261060935,-555.12,0.00047945,45]
[327633917,1716261060944,-151.0,0.00047945,7]
[327633918,1716261060953,-6814.52,0.00047945,45]
[327633919,1716261060962,-500.0,0.00047945,45]
[327633920,1716261060972,-550.51,0.00047945,45]
[327633921,1716261060981,-151.0,0.00047945,7]
[327633922,1716261060990,-500.0,0.00047945,45]
[327633923,1716261060999,-500.0,0.00047945,45]
[327633924,1716261061009,-779.37,0.00047945,45]
[327633925,1716261061018,-546.38,0.00047945,45]
[327633926,1716261061027,-536.15,0.00047945,45]
[327633927,1716261061036,-1453.75,0.00047945,45]
[327633928,1716261061045,-560.28,0.00047945,45]
[327633929,1716261061055,-990.66,0.00047945,45]
[327633930,1716261061064,-821.46,0.00047945,45]
[327633931,1716261061074,-500.0,0.00047945,45]
[327633932,1716261061086,-500.0,0.00047945,45]
[327633933,1716261061096,-500.0,0.00047945,45]
[327633934,1716261061105,-584.41,0.00047945,45]
[327633935,1716261061114,-566.01,0.00047945,45]
[327633936,1716261061125,-500.0,0.00047945,45]
[327633937,1716261061134,-500.0,0.00047945,45]
[327633938,1716261061143,-500.0,0.00047945,45]
[327633939,1716261061155,-500.0,0.00047945,45]
[327633940,1716261061165,-1048.39,0.00047945,45]
[327633941,1716261061174,-933.12,0.00047945,45]
[327633942,1716261061183,-551.58,0.00047945,45]
[327633943,1716261061193,-728.16,0.00047945,45]
[327633944,1716261061202,-500.0,0.00047945,45]
[327633945,1716261061211,-1110.0,0.00047945,45]
[327633946,1716261061220,-500.0,0.00047945,45]
[327633947,1716261061229,-500.0,0.00047945,45]
[327633948,1716261061239,-500.0,0.00047945,45]
[327633949,1716261061248,-1247.44,0.00047945,45]
[327633950,1716261061257,-656.48,0.00047945,45]
[327633951,1716261061266,-500.0,0.00047945,45]
[327633952,1716261061275,-1477.61,0.00047945,45]
[327633953,1716261061285,-2492.34,0.00047945,45]
[327633954,1716261061294,-719.6,0.00047945,45]
[327633955,1716261061303,-500.0,0.00047945,45]
[327633956,1716261061312,-17236.55,0.00047945,45]
[327633957,1716261061321,-500.0,0.00047945,45]
[327633958,1716261061330,-500.0,0.00047945,45]
[327633959,1716261061339,-2734.48,0.00047945,45]
[327633960,1716261061348,-933.62,0.00047945,45]
[327633961,1716261061444,-500.0,0.00047945,45]